bitfinex/quotes_BTCUSD_20251116
["timestamp","ask_amount","ask_price","bid_price","bid_amount"]
[1763281122939,0.323,96034.0,96032.0,0.00877]
[1763281123674,0.53126151,96034.0,96032.0,0.00877]
[1763281123854,0.323,96037.0,96033.0,0.00877]
[1763281124069,0.01953135,96036.0,96033.0,0.00877]
[1763281124898,0.323,96034.0,96033.0,0.00877]
[1763281125088,0.53125957,96034.0,96033.0,0.00877]
[1763281125445,0.323,96034.0,96033.0,0.00977]
[1763281125847,0.53125957,96034.0,96033.0,0.00977]
[1763281126064,0.323,96034.0,96033.0,0.00877]
[1763281126261,0.323,96034.0,96033.0,0.00977]
[1763281127059,0.323,96034.0,96033.0,0.01077]
[1763281127831,0.53125957,96034.0,96033.0,0.01077]
[1763281128763,0.34252447,96034.0,96033.0,0.01077]
[1763281128967,0.55078404,96034.0,96033.0,0.01077]
[1763281130518,0.55078404,96034.0,96033.0,0.002]
[1763281130692,0.56670404,96034.0,96033.0,0.002]
[1763281131338,0.53126391,96032.0,96031.0,0.00024447]
[1763281131538,0.34252447,96032.0,96031.0,0.00024447]
[1763281132866,0.34251434,96032.0,96031.0,0.00024447]
[1763281137940,0.55077825,96032.0,96031.0,0.00024447]
[1763281138480,0.55077825,96032.0,96031.0,0.00019147]
[1763281140629,0.34251434,96032.0,96031.0,0.00019147]
[1763281141192,0.55077825,96032.0,96031.0,0.00019147]
[1763281141785,0.56711657,96032.0,96031.0,0.00019147]
[1763281142246,0.35885266,96032.0,96031.0,0.00019147]
[1763281142688,0.56711657,96032.0,96031.0,0.00019147]
[1763281143092,0.59170657,96032.0,96031.0,0.00019147]
[1763281144393,0.61023097,96032.0,96031.0,0.00019147]
[1763281144576,0.59389265,96032.0,96031.0,0.00019147]
[1763281146104,0.64275588,96032.0,96031.0,0.00019147]
[1763281146309,0.66523449,96032.0,96031.0,0.00019147]
[1763281146777,0.76890387,96032.0,96031.0,0.00019147]
[1763281146901,0.95617949,96032.0,96031.0,0.00019147]
[1763281147101,0.77281449,96032.0,96031.0,0.00019147]
[1763281147326,0.84238349,96032.0,96031.0,0.00019147]
[1763281151808,0.57470651,96021.0,96020.0,9.221e-05]
[1763281152069,0.63062525,96021.0,96020.0,9.221e-05]
[1763281152552,0.63939525,96021.0,96020.0,9.221e-05]
[1763281153050,0.63939525,96021.0,96020.0,0.00054297]
[1763281154639,0.88529525,96021.0,96020.0,0.00054297]
[1763281156216,0.67700748,96021.0,96020.0,0.00054297]
[1763281156427,0.64060308,96021.0,96020.0,0.00054297]
[1763281157037,0.84889085,96021.0,96020.0,0.00054297]
[1763281157354,0.84889085,96021.0,96020.0,0.00084169]
[1763281157970,0.86516085,96021.0,96020.0,0.00084169]
[1763281158612,0.64060308,96021.0,96020.0,0.00084169]
[1763281158808,0.59718434,96021.0,96020.0,0.00084169]
[1763281159024,0.58841434,96021.0,96020.0,0.00084169]
[1763281159929,0.79670211,96021.0,96020.0,0.00084169]
[1763281160920,0.58841434,96021.0,96020.0,0.00084169]
[1763281162007,0.79670211,96021.0,96020.0,0.00084169]
[1763281162883,0.58841434,96021.0,96020.0,0.00084169]
[1763281163123,0.59817666,96021.0,96020.0,0.00084169]
[1763281163383,0.80646443,96021.0,96020.0,0.00084169]
[1763281163602,0.59817666,96021.0,96020.0,0.00084169]
[1763281163826,0.80646443,96021.0,96020.0,0.00084169]
[1763281172854,0.89809944,96021.0,96020.0,0.00084169]
[1763281173076,0.53130946,96011.0,96010.0,0.0004]
[1763281173304,0.8233938,96011.0,96010.0,0.00053515]
[1763281173964,0.83321067,96011.0,96010.0,0.00053515]
[1763281174327,0.84154067,96011.0,96010.0,0.00053515]
[1763281175153,0.85788199,96011.0,96010.0,0.00053515]
[1763281175389,0.88041437,96011.0,96010.0,0.00053515]
[1763281176538,0.88585959,96011.0,96010.0,0.00053515]
[1763281177826,0.93711701,96011.0,96010.0,0.00053515]
[1763281178232,0.86332721,96011.0,96010.0,0.00053515]
[1763281178726,0.84827721,96011.0,96010.0,0.00080679]
[1763281179319,0.63996775,96011.0,96010.0,0.00080679]
[1763281179517,0.62834775,96011.0,96010.0,0.00080679]
[1763281179852,0.83665721,96011.0,96010.0,0.00080679]
[1763281180260,0.83665175,96011.0,96010.0,0.00080679]
[1763281180899,0.62834229,96011.0,96010.0,0.00080679]
[1763281181312,0.83665175,96011.0,96010.0,0.00080679]
[1763281181774,0.62834229,96011.0,96010.0,0.00080679]
[1763281184924,0.83665175,96011.0,96010.0,0.00080679]
[1763281185328,0.62834229,96011.0,96010.0,0.00080679]
[1763281186354,0.62832586,96011.0,96010.0,0.00080679]
[1763281187666,0.83663532,96011.0,96010.0,0.00080679]
[1763281188165,0.62832586,96011.0,96010.0,0.00080679]
[1763281188614,0.01953955,96011.0,96010.0,0.00080679]
[1763281200239,0.01634009,96021.0,96010.0,0.00080679]
[1763281200462,0.01634009,96021.0,96020.0,0.10932468]
[1763281200668,0.01953436,96028.0,96020.0,0.0157]
[1763281200874,0.03587328,96027.0,96021.0,0.02373]
[1763281201082,0.01953436,96026.0,96021.0,0.02373]
[1763281201286,0.01953436,96025.0,96021.0,0.02373]
[1763281201486,0.01953436,96024.0,96021.0,0.02373]
[1763281201723,0.01953436,96023.0,96021.0,0.02373]
[1763281201940,0.53127532,96027.0,96021.0,0.02373]
[1763281201941,0.01953436,96022.0,96021.0,0.02373]
[1763281203653,0.01953436,96022.0,96021.0,0.02473]
[1763281207757,0.01953436,96022.0,96021.0,0.001]
[1763281215072,0.34252674,96022.0,96021.0,0.001]
[1763281215266,0.01952674,96022.0,96021.0,0.001]
[1763281216602,0.01952674,96025.0,96021.0,0.001]
[1763281217007,0.323,96024.0,96021.0,0.001]
[1763281217368,0.01952674,96023.0,96021.0,0.001]
[1763281217592,0.01952674,96023.0,96019.0,0.00877]
[1763281217782,0.03586498,96023.0,96019.0,0.00877]
[1763281217923,0.01952674,96022.0,96019.0,0.00877]
[1763281219400,0.01243,96020.0,96015.0,0.00877]
[1763281219600,0.323,96018.0,96015.0,0.00877]
[1763281219812,0.01952674,96017.0,96015.0,0.00877]
[1763281220245,0.323,96016.0,96012.0,0.00833]
[1763281220448,0.20830729,96012.0,96011.0,0.00024448]
[1763281220675,0.55083403,96012.0,96011.0,0.00024448]
[1763281221077,0.34252674,96012.0,96011.0,0.00024448]
[1763281221297,0.55083403,96012.0,96011.0,0.00024448]
[1763281221915,0.34252674,96012.0,96011.0,0.00024448]
[1763281223407,0.55083403,96012.0,96011.0,0.00024448]
[1763281225074,0.323,96005.0,95999.0,0.00877]
[1763281225290,0.323,96005.0,96000.0,0.00044506]
[1763281225507,0.323,96005.0,95999.0,0.00877]
[1763281225508,0.01953575,96004.0,95999.0,0.00877]
[1763281225710,0.01953575,96004.0,95999.0,0.00890502]
[1763281225914,0.323,96002.0,95999.0,0.00890502]
[1763281226118,0.01953575,96001.0,95999.0,0.00890502]
[1763281226330,0.323,96000.0,95999.0,0.00890502]
[1763281227309,0.323,96005.0,95999.0,0.00890502]
[1763281227514,0.01952881,96004.0,95999.0,0.00890502]
[1763281228498,0.323,96003.0,95999.0,0.00890502]
[1763281228707,0.01952881,96002.0,95999.0,0.00890502]
[1763281228927,0.323,96003.0,95999.0,0.00890502]
[1763281229133,0.01952321,96002.0,95999.0,0.00890502]
[1763281229698,0.323,96006.0,95999.0,0.00890502]
[1763281229930,0.53133313,96001.0,95999.0,0.00890502]
[1763281230177,0.323,96000.0,95999.0,0.00890502]
[1763281241364,0.53133333,96000.0,95999.0,0.00890502]
[1763281241811,0.53133333,96000.0,95999.0,0.00923102]
[1763281243283,0.323,96000.0,95999.0,0.00923102]
[1763281246193,0.34251127,96000.0,95999.0,0.00923102]
[1763281248523,0.323,96000.0,95999.0,0.00923102]
[1763281249501,0.323,96000.0,95999.0,0.01123102]
[1763281249935,0.323,96000.0,95999.0,0.00923102]
[1763281250337,0.323,96000.0,95999.0,0.01123102]
[1763281250540,0.323,96000.0,95999.0,0.04153284]
[1763281250965,0.323,96000.0,95999.0,0.04253284]
[1763281251381,0.323,96000.0,95999.0,0.04153284]
[1763281251766,0.323,96000.0,95999.0,0.04253284]
[1763281251973,0.16158953,96009.0,96008.0,0.02401]
[1763281252179,0.16158953,96020.0,96017.0,0.01568]
[1763281252385,0.16158953,96030.0,96026.0,0.0243]
[1763281252563,0.16158953,96040.0,96035.0,0.02421]
[1763281252564,0.16158953,96036.0,96035.0,0.02421]
[1763281252761,0.32317906,96045.0,96044.0,0.02421]
[1763281252962,0.01952622,96045.0,96044.0,0.00853]
[1763281253818,0.0199759,96045.0,96044.0,0.00853]
[1763281254030,0.00044968,96045.0,96044.0,0.00853]
[1763281254373,0.00044968,96045.0,96044.0,0.03981893]
[1763281255167,0.00044968,96045.0,96044.0,0.00853]
[1763281255583,0.00044968,96045.0,96044.0,0.03276]
[1763281256152,0.00044968,96045.0,96044.0,0.00853]
[1763281262583,0.00044968,96045.0,96044.0,0.03981661]
[1763281264068,0.00044968,96045.0,96044.0,0.04081661]
[1763281265014,0.00044968,96045.0,96044.0,0.03981661]
[1763281265216,0.00044968,96045.0,96044.0,0.04181661]
[1763281265632,0.00044968,96045.0,96044.0,0.06264039]
[1763281266074,0.00044968,96045.0,96044.0,0.04081661]
[1763281266288,0.00044968,96045.0,96044.0,0.06264039]
[1763281266465,0.00044968,96045.0,96044.0,0.06164039]
[1763281266815,0.00044968,96045.0,96044.0,0.03981661]
[1763281266994,0.00044968,96045.0,96044.0,0.04181661]
[1763281267420,0.00044968,96045.0,96044.0,0.04081661]
[1763281268148,0.00044968,96045.0,96044.0,0.04181661]
[1763281268569,0.00044968,96045.0,96044.0,0.04081661]
[1763281268810,0.00044968,96045.0,96044.0,0.06164039]
[1763281268981,0.00044968,96045.0,96044.0,0.06264039]
[1763281269612,0.00044968,96045.0,96044.0,0.04081661]
[1763281269815,0.00044968,96045.0,96044.0,0.04181661]
[1763281270226,0.00044968,96045.0,96044.0,0.04081661]
[1763281270450,0.01633464,96075.0,96044.0,0.04081661]
[1763281270649,0.16158953,96060.0,96056.0,0.0114]
[1763281270854,0.16158953,96066.0,96064.0,0.0114]
[1763281271032,0.16158953,96074.0,96064.0,0.0114]
[1763281271235,0.01938344,96073.0,96065.0,0.02264]
[1763281271640,0.01938344,96073.0,96065.0,0.05392093]
[1763281271827,0.02988898,96073.0,96065.0,0.05392093]
[1763281272024,0.01050554,96073.0,96066.0,0.02264]
[1763281272295,0.01938438,96072.0,96066.0,0.05392093]
[1763281272492,0.01938438,96071.0,96066.0,0.05392093]
[1763281272715,0.323,96073.0,96064.0,0.0114]
[1763281272938,0.01938161,96072.0,96067.0,0.02264]
[1763281273199,0.33315813,96073.0,96071.0,0.09362468]
[1763281273408,9.365e-05,96075.0,96072.0,0.0114]
[1763281273623,9.365e-05,96075.0,96072.0,0.03404]
[1763281274029,9.365e-05,96075.0,96073.0,0.05587405]
[1763281274485,9.365e-05,96075.0,96074.0,0.0246]
[1763281274929,0.32304,96099.0,96083.0,0.01558]
[1763281275145,0.16158953,96093.0,96084.0,0.0076]
[1763281275361,0.16158953,96093.0,96092.0,0.09362468]
[1763281275582,0.16178953,96120.0,96092.0,0.09362468]
[1763281275583,0.0002,96120.0,96098.0,0.02318]
[1763281275802,0.01936488,96119.0,96098.0,0.0076]
[1763281276023,0.323,96109.0,96099.0,0.0246]
[1763281276249,0.01936488,96108.0,96099.0,0.05586516]
[1763281276509,0.01936488,96107.0,96100.0,0.0246]
[1763281276718,0.01936488,96106.0,96100.0,0.0246]
[1763281276928,0.01936488,96105.0,96100.0,0.0246]
[1763281277132,0.323,96109.0,96108.0,0.09362468]
[1763281277640,0.323,96117.0,96108.0,0.09362468]
[1763281277844,0.323,96117.0,96109.0,0.0246]
[1763281280268,0.00033514,96120.0,96109.0,0.0256]
[1763281280483,0.323,96118.0,96109.0,0.0256]
[1763281281010,0.00033514,96120.0,96117.0,0.02323]
[1763281281238,0.00033514,96120.0,96119.0,0.01558]
[1763281281465,0.00033514,96120.0,96117.0,0.00765]
[1763281282052,0.00033514,96120.0,96118.0,0.0246]
[1763281283259,0.00033514,96120.0,96118.0,0.0256]
[1763281288087,0.00033514,96120.0,96118.0,0.0246]
[1763281288314,0.00033514,96120.0,96118.0,0.0256]
[1763281289149,0.01934663,96119.0,96118.0,0.001]
[1763281290567,0.01934663,96119.0,96118.0,0.0256]
[1763281291109,0.01934663,96119.0,96118.0,0.0246]
[1763281291374,0.01934663,96119.0,96118.0,0.0256]
[1763281291817,0.01934663,96119.0,96118.0,0.001]
[1763281293248,0.01934663,96119.0,96118.0,0.02512]
[1763281293998,0.01934663,96119.0,96118.0,0.02412]
[1763281294220,0.01934663,96119.0,96118.0,0.02512]
[1763281296940,0.01934663,96119.0,96118.0,0.04592775]
[1763281297310,0.01934663,96119.0,96118.0,0.02180775]
[1763281297712,0.01934663,96119.0,96118.0,0.02080775]
[1763281298010,0.01934663,96119.0,96118.0,0.02180775]
[1763281298532,0.01934663,96119.0,96118.0,0.001]
[1763281300474,0.01934663,96119.0,96117.0,0.00765]
[1763281300653,0.01934663,96118.0,96117.0,0.00765]
[1763281301672,0.01934663,96118.0,96117.0,0.00865]
[1763281302080,0.01934663,96118.0,96117.0,0.00765]
[1763281303346,0.01934663,96118.0,96117.0,0.00865]
[1763281303347,0.02909257,96118.0,96117.0,0.00865]
[1763281303921,0.01934663,96118.0,96117.0,0.00865]
[1763281304605,0.02909886,96118.0,96117.0,0.00865]
[1763281305025,0.02909886,96118.0,96117.0,0.00765]
[1763281305371,0.02909886,96118.0,96117.0,0.00865]
[1763281310139,0.01934663,96118.0,96117.0,0.00865]
[1763281315789,0.00033514,96120.0,96118.0,0.02412]
[1763281316957,0.00033514,96120.0,96118.0,0.02512]
[1763281337194,0.00033514,96120.0,96119.0,0.02080754]
[1763281338447,0.1210313,96140.0,96129.0,0.10970468]
[1763281338600,0.1210313,96140.0,96132.0,0.00824]
[1763281338601,0.01024117,96136.0,96132.0,0.00824]
[1763281338807,0.323,96139.0,96132.0,0.00824]
[1763281339162,0.323,96139.0,96133.0,0.02289]
[1763281339575,0.33317253,96139.0,96133.0,0.02289]
[1763281341734,0.01017253,96139.0,96133.0,0.02289]
[1763281341939,0.0002,96140.0,96134.0,0.02080429]
[1763281342355,0.0002,96140.0,96135.0,0.02289]
[1763281342756,0.0002,96140.0,96135.0,0.04369407]
[1763281342954,0.0002,96140.0,96136.0,0.02080386]
[1763281343157,0.0002,96140.0,96136.0,0.04369386]
[1763281343357,0.0002,96140.0,96137.0,0.02080364]
[1763281343663,0.0002,96140.0,96138.0,0.00824]
[1763281344069,0.0002,96140.0,96139.0,0.02289]
[1763281344516,0.0002,96140.0,96139.0,0.04369321]
[1763281344935,0.0002,96140.0,96139.0,0.02080321]
[1763281345353,0.0002,96140.0,96139.0,0.02180321]
[1763281346402,0.0002,96140.0,96139.0,0.001]
[1763281347268,0.0002,96140.0,96139.0,0.02280321]
[1763281347494,0.0002,96140.0,96139.0,0.002]
[1763281348123,0.0002,96140.0,96139.0,0.02280321]
[1763281348329,0.32304,96149.0,96148.0,0.02432]
[1763281348511,0.32349037,96149.0,96148.0,0.02432]
[1763281348770,0.32349037,96149.0,96148.0,0.00824]
[1763281349628,0.00049037,96149.0,96148.0,0.00824]
[1763281349786,0.0108254,96149.0,96148.0,0.00824]
[1763281350000,0.00049037,96149.0,96148.0,0.00824]
[1763281350702,0.01111393,96149.0,96148.0,0.00824]
[1763281357168,0.33411393,96149.0,96148.0,0.00824]
[1763281357541,0.53101264,96148.0,96147.0,0.09362468]
[1763281357750,0.53101927,96145.0,96133.0,0.02419]
[1763281357947,0.53101927,96145.0,96144.0,0.09362468]
[1763281358321,0.323,96145.0,96144.0,0.10957468]
[1763281358534,0.323,96145.0,96144.0,0.09362468]
[1763281358713,0.01111393,96149.0,96144.0,0.09362468]
[1763281359117,0.01111393,96149.0,96145.0,0.02419]
[1763281359355,0.01111393,96149.0,96146.0,0.02080169]
[1763281359569,0.01111393,96149.0,96147.0,0.02080148]
[1763281359785,0.01111393,96149.0,96145.0,0.02419]
[1763281361960,0.01111393,96149.0,96146.0,0.02080169]
[1763281362177,0.01111393,96149.0,96147.0,0.02419]
[1763281362447,0.01111393,96149.0,96148.0,0.02080126]
[1763281364615,0.01111393,96149.0,96144.0,0.09362468]
[1763281364738,0.01111393,96149.0,96145.0,0.02080191]
[1763281364939,0.01111393,96149.0,96145.0,0.04499191]
[1763281365347,0.01111393,96149.0,96146.0,0.02419]
[1763281365568,0.01111393,96149.0,96147.0,0.02080148]
[1763281365968,0.01111393,96149.0,96148.0,0.02419]
[1763281368109,0.01111393,96149.0,96144.0,0.09362468]
[1763281368498,0.33411393,96149.0,96144.0,0.09362468]
[1763281368704,0.53101913,96145.0,96144.0,0.09362468]
[1763281368963,0.323,96144.0,96129.0,0.09362468]
[1763281369119,0.6450378,96139.0,96129.0,0.09362468]
[1763281369488,0.6450378,96139.0,96129.0,0.11781468]
[1763281370895,0.6450378,96139.0,96129.0,0.11981468]
[1763281371326,0.6450378,96139.0,96129.0,0.11881468]
[1763281372319,0.6450378,96139.0,96129.0,0.11781468]
[1763281372523,0.6450378,96139.0,96130.0,0.02419]
[1763281372950,0.323,96136.0,96130.0,0.02419]
[1763281373773,0.323,96136.0,96130.0,0.02519]
[1763281374116,0.323,96138.0,96130.0,0.02519]
[1763281374316,0.323,96138.0,96130.0,0.02419]
[1763281374663,0.323,96138.0,96130.0,0.02519]
[1763281375042,0.323,96138.0,96130.0,0.02419]
[1763281375657,0.323,96138.0,96130.0,0.02519]
[1763281376048,0.323,96138.0,96130.0,0.02419]
[1763281376220,0.323,96138.0,96130.0,0.02519]
[1763281377163,0.323,96138.0,96131.0,0.02080494]
[1763281377586,0.323,96138.0,96132.0,0.02419]
[1763281380341,0.323,96138.0,96132.0,0.02519]
[1763281380569,0.01661,96133.0,96132.0,0.001]
[1763281380787,0.33961,96133.0,96132.0,0.001]
[1763281381157,0.323,96133.0,96132.0,0.001]
[1763281381571,0.323,96133.0,96125.0,0.02419]
[1763281381759,0.323,96134.0,96132.0,0.09362468]
[1763281381979,0.323,96134.0,96132.0,0.09462468]
[1763281382380,0.323,96134.0,96123.0,0.02291]
[1763281382640,0.53104336,96134.0,96133.0,0.09362468]
[1763281383025,0.323,96134.0,96133.0,0.09362468]
[1763281383382,0.5310451,96133.0,96123.0,0.02391]
[1763281383584,0.323,96130.0,96128.0,0.09362468]
[1763281383796,0.02733,96124.0,96123.0,0.001]
[1763281384158,0.35033,96124.0,96123.0,0.001]
[1763281385320,0.323,96116.0,96113.0,0.0114]
[1763281385522,0.20806674,96123.0,96093.0,0.02291]
[1763281385523,0.53110788,96104.0,96093.0,0.02291]
[1763281385924,0.323,96104.0,96100.0,0.02291]
[1763281386438,0.323,96104.0,96103.0,0.01153514]
[1763281387696,0.53110788,96104.0,96103.0,0.01153514]
[1763281387897,0.323,96104.0,96103.0,0.01153514]
[1763281388512,0.323,96104.0,96103.0,0.01253514]
[1763281388826,0.53110788,96104.0,96103.0,0.01253514]
[1763281389659,0.323,96099.0,96092.0,0.08046982]
[1763281390831,0.323,96099.0,96092.0,0.08146982]
[1763281392241,0.323,96099.0,96092.0,0.08246982]
[1763281392932,0.20808482,96115.0,96092.0,0.08246982]
[1763281393132,0.323,96101.0,96092.0,0.08246982]
[1763281394064,0.323,96101.0,96092.0,0.08146982]
[1763281394271,0.323,96101.0,96092.0,0.02146982]
[1763281394901,0.323,96101.0,96092.0,0.02046982]
[1763281396546,0.323,96101.0,96092.0,0.02146982]
[1763281396688,0.323,96101.0,96100.0,0.09362468]
[1763281397308,0.323,96101.0,96071.0,0.09362468]
[1763281397309,0.323,96102.0,96086.0,0.09362468]
[1763281397513,0.323,96095.0,96086.0,0.09362468]
[1763281398307,0.323,96095.0,96092.0,0.001]
[1763281398985,0.323,96099.0,96086.0,0.09462468]
[1763281399169,0.323,96095.0,96086.0,0.09562468]
[1763281399738,0.323,96095.0,96086.0,0.09462468]
[1763281400758,0.323,96095.0,96086.0,0.09362468]
[1763281400977,0.323,96095.0,96092.0,0.001]
[1763281401392,0.323,96095.0,96092.0,0.002]
[1763281401592,0.323,96095.0,96092.0,0.001]
[1763281401777,0.323,96095.0,96086.0,0.09362468]
[1763281401987,0.323,96095.0,96086.0,0.09562468]
[1763281402530,0.323,96095.0,96086.0,0.09462468]
[1763281402748,0.323,96095.0,96086.0,0.03462468]
[1763281403039,0.323,96095.0,96092.0,0.001]
[1763281403214,0.323,96099.0,96092.0,0.001]
[1763281403959,0.323,96099.0,96092.0,0.002]
[1763281404249,0.20812283,96098.0,96092.0,0.001]
[1763281404454,0.323,96099.0,96092.0,0.001]
[1763281404653,0.323,96096.0,96092.0,0.001]
[1763281405232,0.323,96096.0,96086.0,0.03362468]
[1763281405422,0.6450378,96096.0,96086.0,0.03362468]
[1763281405617,0.6450378,96096.0,96092.0,0.001]
[1763281405838,0.323,96096.0,96092.0,0.001]
[1763281406044,0.323,96096.0,96086.0,0.03362468]
[1763281406243,0.4840189,96096.0,96086.0,0.03362468]
[1763281406648,0.4840189,96096.0,96092.0,0.001]
[1763281406849,0.323,96101.0,96086.0,0.03362468]
[1763281407098,0.1610189,96096.0,96086.0,0.03362468]
[1763281407289,0.1610189,96096.0,96086.0,0.03462468]
[1763281408113,0.1610189,96096.0,96092.0,0.001]
[1763281408313,0.323,96101.0,96086.0,0.03462468]
[1763281408812,0.323,96101.0,96086.0,0.03562468]
[1763281409048,0.323,96095.0,96086.0,0.03562468]
[1763281409205,0.323,96095.0,96086.0,0.03462468]
[1763281409400,0.323,96095.0,96092.0,0.001]
[1763281410306,0.323,96101.0,96092.0,0.002]
[1763281410703,0.323,96101.0,96092.0,0.001]
[1763281411147,0.323,96101.0,96086.0,0.03362468]
[1763281411342,0.323,96101.0,96086.0,0.03462468]
[1763281411635,0.323,96101.0,96092.0,0.001]
[1763281412459,0.01951614,96100.0,96092.0,0.002]
[1763281413028,0.20812145,96098.0,96092.0,0.001]
[1763281413266,0.323,96097.0,96092.0,0.001]
[1763281413478,0.01953473,96096.0,96092.0,0.001]
[1763281413676,0.01953473,96095.0,96092.0,0.001]
[1763281413858,0.53112358,96097.0,96092.0,0.001]
[1763281414075,0.01953445,96096.0,96092.0,0.001]
[1763281414281,0.01953445,96096.0,96086.0,0.03362468]
[1763281414509,0.01953445,96096.0,96092.0,0.001]
[1763281414705,0.323,96095.0,96092.0,0.002]
[1763281415082,0.323,96095.0,96092.0,0.001]
[1763281415487,0.323,96095.0,96092.0,0.002]
[1763281415724,0.323,96101.0,96092.0,0.002]
[1763281416025,0.323,96098.0,96086.0,0.03362468]
[1763281416198,0.323,96095.0,96086.0,0.03362468]
[1763281416587,0.323,96095.0,96092.0,0.001]
[1763281416789,0.323,96095.0,96086.0,0.03362468]
[1763281416988,0.53112806,96095.0,96086.0,0.03362468]
[1763281417217,0.323,96095.0,96092.0,0.001]
[1763281417761,0.34715,96101.0,96086.0,0.03362468]
[1763281417921,0.323,96095.0,96092.0,0.001]
[1763281418861,0.323,96095.0,96092.0,0.002]
[1763281419161,0.323,96096.0,96092.0,0.002]
[1763281419338,0.53112531,96096.0,96092.0,0.002]
[1763281419541,0.323,96096.0,96092.0,0.002]
[1763281420225,0.323,96101.0,96086.0,0.03362468]
[1763281420409,0.323,96095.0,96092.0,0.001]
[1763281420612,0.323,96095.0,96092.0,0.002]
[1763281420849,0.323,96093.0,96092.0,0.002]
[1763281421046,0.5311317,96093.0,96092.0,0.001]
[1763281421251,0.323,96093.0,96086.0,0.03362468]
[1763281421451,0.323,96093.0,96086.0,0.03462468]
[1763281422038,0.20813176,96093.0,96086.0,0.03362468]
[1763281422245,0.323,96091.0,96086.0,0.03362468]
[1763281422441,0.323,96094.0,96086.0,0.03362468]
[1763281422854,0.323,96094.0,96092.0,0.001]
[1763281423047,0.323,96091.0,96086.0,0.03362468]
[1763281423248,0.02415,96095.0,96086.0,0.03362468]
[1763281423249,0.5427247,96087.0,96086.0,0.03362468]
[1763281423503,0.5592147,96087.0,96086.0,0.03462468]
[1763281423661,0.57875051,96087.0,96086.0,0.03362468]
[1763281424062,0.5592147,96087.0,96086.0,0.03362468]
[1763281424260,0.5592147,96087.0,96086.0,0.03462468]
[1763281424693,0.5592147,96087.0,96086.0,0.03562468]
[1763281424889,0.5787472,96087.0,96086.0,0.03562468]
[1763281425289,0.5787472,96087.0,96086.0,0.03462468]
[1763281426305,0.5592147,96087.0,96086.0,0.03462468]
[1763281426728,0.5592147,96087.0,96086.0,0.03562468]
[1763281427965,0.35107,96087.0,96086.0,0.03562468]
[1763281428639,0.323,96087.0,96086.0,0.03562468]
[1763281440180,0.24183896,96096.0,96086.0,0.03562468]
[1763281440374,0.36275844,96096.0,96086.0,0.03562468]
[1763281440611,0.323,96095.0,96086.0,0.03562468]
[1763281441235,0.323,96095.0,96086.0,0.03462468]
[1763281442755,0.323,96095.0,96086.0,0.03362468]
[1763281443206,0.323,96095.0,96086.0,0.03462468]
[1763281443805,0.323,96095.0,96086.0,0.03562468]
[1763281447854,0.54289785,96095.0,96086.0,0.03562468]
[1763281448265,0.323,96093.0,96086.0,0.03562468]
[1763281448471,0.33477,96095.0,96086.0,0.03562468]
[1763281448802,0.54289823,96095.0,96086.0,0.03562468]
[1763281449178,0.54289823,96095.0,96086.0,0.03462468]
[1763281449710,0.54289823,96095.0,96086.0,0.03562468]
[1763281450028,0.54289823,96095.0,96086.0,0.03462468]
[1763281450227,0.20813195,96093.0,96086.0,0.03462468]
[1763281450457,0.323,96093.0,96086.0,0.03562468]
[1763281451358,0.323,96095.0,96086.0,0.03562468]
[1763281451776,0.323,96095.0,96086.0,0.03462468]
[1763281451969,0.323,96095.0,96086.0,0.03362468]
[1763281452173,0.323,96093.0,96086.0,0.03362468]
[1763281452501,0.323,96091.0,96086.0,0.03562468]
[1763281452824,0.323,96091.0,96086.0,0.03462468]
[1763281453029,0.02702,96087.0,96086.0,0.002]
[1763281453222,0.35002,96087.0,96086.0,0.002]
[1763281453477,0.323,96085.0,96071.0,0.09362468]
[1763281453793,0.323,96080.0,96071.0,0.09362468]
[1763281455220,0.93367572,96081.0,96071.0,0.09362468]
[1763281455221,0.323,96078.0,96071.0,0.09362468]
[1763281455622,0.53116506,96078.0,96071.0,0.09362468]
[1763281455829,0.323,96078.0,96071.0,0.09362468]
[1763281456029,0.323,96078.0,96071.0,0.09562468]
[1763281456358,0.323,96078.0,96071.0,0.09462468]
[1763281456470,0.323,96078.0,96071.0,0.09562468]
[1763281456912,0.323,96078.0,96071.0,0.09462468]
[1763281457296,0.323,96080.0,96071.0,0.09462468]
[1763281458307,0.323,96080.0,96071.0,0.09362468]
[1763281458736,0.323,96080.0,96071.0,0.09562468]
[1763281459147,0.323,96080.0,96071.0,0.09462468]
[1763281459357,0.323,96080.0,96071.0,0.09562468]
[1763281459537,0.323,96080.0,96072.0,0.02081772]
[1763281460431,0.31714842,96080.0,96072.0,0.02081772]
[1763281461632,0.31714842,96080.0,96072.0,0.02181772]
[1763281461859,0.31714842,96080.0,96072.0,0.02281772]
[1763281462642,0.31714842,96080.0,96072.0,0.02181772]
[1763281463024,0.31714842,96080.0,96072.0,0.02281772]
[1763281464887,0.31714842,96080.0,96072.0,0.02081772]
[1763281465081,0.31714842,96080.0,96072.0,0.02281772]
[1763281465286,0.31714842,96080.0,96072.0,0.001]
[1763281465985,0.31714842,96080.0,96072.0,0.002]
[1763281469831,0.31714842,96080.0,96072.0,0.02281772]
[1763281470072,0.0163236,96100.0,96072.0,0.02281772]
[1763281470284,0.24183896,96082.0,96072.0,0.02281772]
[1763281470451,0.24183896,96082.0,96073.0,0.03127216]
[1763281470618,0.24183896,96082.0,96074.0,0.02081728]
[1763281470824,0.12091948,96090.0,96073.0,0.03127216]
[1763281470825,0.12091948,96084.0,96075.0,0.02081706]
[1763281471026,0.12091948,96084.0,96076.0,0.02081685]
[1763281471276,0.12091948,96084.0,96077.0,0.02081663]
[1763281471475,0.12091948,96086.0,96078.0,0.02081641]
[1763281471640,0.36275844,96090.0,96079.0,0.0208162]
[1763281471834,0.36275844,96090.0,96089.0,0.09362468]
[1763281472076,0.56483896,96099.0,96089.0,0.09362468]
[1763281473057,0.44391948,96099.0,96089.0,0.09362468]
[1763281474007,0.24183896,96100.0,96089.0,0.09562468]
[1763281474206,0.36275844,96100.0,96089.0,0.09562468]
[1763281474431,0.36275844,96100.0,96089.0,0.09462468]
[1763281474575,0.36275844,96100.0,96089.0,0.09362468]
[1763281474970,0.36275844,96100.0,96089.0,0.11443871]